bitfinex/quotes_ETHUSD_20220202
["timestamp","ask_amount","ask_price","bid_price","bid_amount"]
[1643791187396,0.68858445,2758.4,2758.3,2.4126065]
[1643791190642,1.53462606,2758.5,2758.3,2.4126065]
[1643791190845,2.22320631,2758.4,2758.3,2.4126065]
[1643791191045,1.53462606,2758.4,2758.3,2.4126065]
[1643791191243,0.68858025,2758.5,2758.3,2.4126065]
[1643791191642,0.68858025,2758.5,2758.4,0.3]
[1643791191845,0.68858025,2758.6,2758.4,0.3]
[1643791192051,0.68858025,2758.6,2758.4,1.20623]
[1643791192248,2.22320631,2758.6,2758.4,2.08534317]
[1643791192448,1.53462606,2758.5,2758.4,2.08534317]
[1643791192847,0.68858025,2758.6,2758.4,2.08534317]
[1643791193101,0.68858025,2758.6,2758.4,1.20623]
[1643791193304,2.22320631,2758.6,2758.4,1.20623]
[1643791193506,1.53462606,2758.5,2758.4,1.20623]
[1643791194204,0.68858025,2758.6,2758.4,1.20623]
[1643791197163,0.68858025,2758.5,2758.4,1.20623]
[1643791198061,0.91390638,2758.7,2758.4,0.90623]
[1643791198255,2.44853244,2758.7,2758.4,0.90623]
[1643791198458,1.53462606,2758.6,2758.5,0.9062065]
[1643791198658,0.68889569,2758.6,2758.5,2.7186265]
[1643791199259,1.53462606,2758.6,2758.5,2.7186265]
[1643791199458,2.77764553,2758.8,2758.6,0.3]
[1643791199664,1.53451194,2758.7,2758.6,0.3]
[1643791200800,2.44841832,2758.7,2758.6,0.3]
[1643791201201,1.53451194,2758.7,2758.6,0.3]
[1643791201398,0.91390638,2758.7,2758.6,0.3]
[1643791202215,2.44841832,2758.8,2758.6,0.3]
[1643791202603,2.44841832,2758.7,2758.6,0.3]
[1643791202807,2.44841832,2758.7,2758.5,3.79424326]
[1643791203005,1.53451194,2758.6,2758.5,2.88803676]
[1643791203204,1.53451194,2758.6,2758.5,0.3]
[1643791203205,0.91390638,2758.6,2758.5,0.3]
[1643791203604,2.44841832,2758.6,2758.4,1.20623]
[1643791203806,3.44841832,2758.6,2758.4,1.20623]
[1643791204005,1.53451194,2758.5,2758.4,1.20623]
[1643791204444,1.0,2758.5,2758.4,1.20623]
[1643791204644,2.44841832,2758.6,2758.4,0.90623]
[1643791204847,2.44841832,2758.6,2758.4,1.20623]
[1643791205044,1.53451194,2758.5,2758.4,1.20623]
[1643791206449,1.53451194,2758.6,2758.4,1.20623]
[1643791206745,2.09516638,2758.7,2758.4,1.20623]
[1643791206746,1.53451194,2758.5,2758.4,1.20623]
[1643791207157,1.53451194,2758.6,2758.4,1.20623]
[1643791208095,1.53451194,2758.6,2758.4,1.50623]
[1643791208301,3.44841832,2758.7,2758.4,1.20623]
[1643791208505,1.53446727,2758.6,2758.5,2.7186566]
[1643791208906,2.53446727,2758.6,2758.5,2.7186566]
[1643791209907,1.53446727,2758.6,2758.5,0.9062166]
[1643791210112,2.44837365,2758.7,2758.5,0.9062166]
[1643791210410,2.44837365,2758.7,2758.5,2.7186566]
[1643791211009,1.53446727,2758.7,2758.5,2.7186566]
[1643791211841,1.53446727,2758.7,2758.6,0.3]
[1643791212850,1.53446727,2758.7,2758.5,2.7186566]
[1643791213048,2.44837365,2758.7,2758.5,2.7186566]
[1643791213750,0.18126,2758.6,2758.5,2.7186566]
[1643791213950,1.71572727,2758.6,2758.5,2.7186566]
[1643791214153,2.71572727,2758.6,2758.5,2.7186566]
[1643791214952,2.53446727,2758.6,2758.5,2.7186566]
[1643791215157,1.53446727,2758.6,2758.5,3.0186566]
[1643791215354,3.44837365,2758.8,2758.5,3.9248966]
[1643791215594,1.53446727,2758.7,2758.5,3.9248966]
[1643791215995,0.68906735,2758.6,2758.5,3.9248966]
[1643791216999,1.53446727,2758.6,2758.5,3.9248966]
[1643791217199,2.2235276,2758.6,2758.5,3.9248966]
[1643791217398,0.68906033,2758.6,2758.5,3.9248966]
[1643791218002,2.44837365,2758.8,2758.5,3.9248966]
[1643791218200,2.44837365,2758.7,2758.5,3.9248966]
[1643791218500,1.53446727,2758.6,2758.5,3.9248966]
[1643791218901,0.91390638,2758.7,2758.5,3.9248966]
[1643791219757,1.53446727,2758.6,2758.5,3.9248966]
[1643791220059,2.22354213,2758.6,2758.5,3.9248966]
[1643791220258,0.68907486,2758.6,2758.5,3.9248966]
[1643791220464,0.68907486,2758.6,2758.5,2.28824627]
[1643791220860,2.22354213,2758.6,2758.5,2.28824627]
[1643791221062,2.22354213,2758.6,2758.5,1.98824627]
[1643791221261,0.68907486,2758.6,2758.5,1.98824627]
[1643791221861,0.68907486,2758.6,2758.5,2.89448627]
[1643791222263,0.68907486,2758.6,2758.5,3.19448627]
[1643791222561,2.22354213,2758.6,2758.5,3.19448627]
[1643791222765,0.68907486,2758.6,2758.5,3.19448627]
[1643791224001,0.68907486,2758.6,2758.5,2.1124566]
[1643791224600,2.22354213,2758.6,2758.5,2.1124566]
[1643791225402,2.22380224,2758.6,2758.5,2.1124566]
[1643791225607,1.53446727,2758.6,2758.5,2.1124566]
[1643791226002,1.53446727,2758.7,2758.5,3.9248966]
[1643791228148,2.44837365,2758.7,2758.5,3.9248966]
[1643791228345,3.44837365,2758.7,2758.5,3.9248966]
[1643791228548,1.53446727,2758.6,2758.5,3.9248966]
[1643791229548,2.44837365,2758.7,2758.5,3.9248966]
[1643791230152,1.53446727,2758.6,2758.5,3.9248966]
[1643791230350,1.53446727,2758.6,2758.5,3.6248966]
[1643791230594,1.53446727,2758.6,2758.5,3.9248966]
[1643791230807,2.44837365,2758.7,2758.5,3.9248966]
[1643791231300,1.53446727,2758.6,2758.5,3.9248966]
[1643791231499,1.53446727,2758.7,2758.5,3.6248966]
[1643791231701,2.22403766,2758.6,2758.5,3.9248966]
[1643791231902,0.68957039,2758.6,2758.5,3.9248966]
[1643791232301,2.22403766,2758.6,2758.5,2.1124566]
[1643791232501,0.68957039,2758.6,2758.5,2.1124566]
[1643791235741,0.68957039,2758.6,2758.5,1.2062166]
[1643791235947,0.68965491,2758.6,2758.5,2.1124166]
[1643791238101,0.68965491,2758.6,2758.5,1.2062166]
[1643791240507,0.68965491,2758.6,2758.4,3.1944873]
[1643791242058,0.68965491,2758.6,2758.5,0.9062166]
[1643791242460,1.09510638,2758.9,2758.5,0.9062166]
[1643791242461,0.1812,2758.9,2758.5,1.8123266]
[1643791242665,2.84848394,2759.6,2758.6,1.8119839]
[1643791242666,0.1812,2759.5,2758.6,1.8119839]
[1643791242875,1.09510638,2759.6,2758.7,0.91460237]
[1643791243065,0.91390638,2759.6,2758.8,0.1811]
[1643791243266,0.91390638,2759.7,2759.4,0.77566632]
[1643791243466,0.1811,2759.7,2759.5,0.90585]
[1643791243863,0.91390638,2759.9,2759.6,2.71757]
[1643791243864,0.1811,2759.8,2759.6,2.71757]
[1643791244265,0.1811,2759.8,2759.7,0.3]
[1643791244467,1.91390638,2759.9,2759.7,0.3]
[1643791244468,2.09500638,2759.9,2759.7,0.3]
[1643791244665,2.09500638,2759.9,2759.7,1.2058513]
[1643791244863,2.09500638,2759.9,2759.7,2.1117113]
[1643791245698,0.1811,2759.9,2759.7,2.1117113]
[1643791245898,1.1811,2759.9,2759.7,2.1117113]
[1643791246099,0.1811,2759.9,2759.7,2.1117113]
[1643791246307,1.1811,2759.9,2759.7,2.1117113]
[1643791246500,0.1811,2759.9,2759.7,2.1117113]
[1643791246701,1.1811,2759.9,2759.7,2.1117113]
[1643791247103,1.47420298,2760.0,2759.9,0.93998467]
[1643791247306,1.47420298,2760.0,2759.9,1.23998467]
[1643791247504,0.5602966,2760.0,2759.9,1.23998467]
[1643791248607,0.92635987,2760.0,2759.9,1.23998467]
[1643791248811,0.54732327,2760.0,2759.9,1.23998467]
[1643791251463,0.44732327,2760.0,2759.9,1.23998467]
[1643791252161,0.36606327,2760.0,2759.9,1.23998467]
[1643791253407,0.26606327,2760.0,2759.9,1.23998467]
[1643791254208,0.68573769,2760.1,2759.9,1.23998467]
[1643791254411,0.68573769,2760.4,2760.0,1.8114]
[1643791254610,0.68573769,2760.5,2760.1,0.90568]
[1643791254908,0.53573769,2760.5,2760.1,1.38678]
[1643791255107,0.1811,2760.6,2760.1,1.38678]
[1643791255307,1.09500638,2760.8,2760.2,0.9056705]
[1643791255509,0.60087451,2760.8,2760.5,0.8230323]
[1643791255707,0.60087451,2760.8,2760.5,2.9343923]
[1643791256108,1.51478089,2760.8,2760.5,2.9343923]
[1643791256311,0.60087451,2760.8,2760.5,2.9343923]
[1643791256845,0.60087451,2760.8,2760.5,2.11136]
[1643791257656,1.51478089,2760.8,2760.5,2.11136]
[1643791257850,4.01533662,2760.7,2760.6,0.80618049]
[1643791258251,3.86533662,2760.7,2760.6,0.80618049]
[1643791259352,0.26533662,2760.7,2760.6,0.80618049]
[1643791259854,0.1811,2760.8,2760.6,1.10618049]
[1643791260067,0.1811,2761.1,2760.6,3.63977049]
[1643791260254,0.1811,2761.1,2760.7,0.90559]
[1643791260458,1.81953638,2761.2,2760.7,0.90559]
[1643791260459,2.00063638,2761.2,2760.8,0.3]
[1643791260694,2.00063638,2761.2,2760.6,3.09847049]
[1643791260695,1.08673,2761.2,2760.6,2.9684924]
[1643791261296,3.16799,2761.2,2760.6,2.9684924]
[1643791261497,4.08189638,2761.2,2760.6,2.9684924]
[1643791261701,0.91390638,2761.1,2760.6,2.9684924]
[1643791261900,0.91390638,2761.1,2760.6,0.80618049]
[1643791261901,0.38749082,2760.9,2760.6,0.80618049]
[1643791262101,2.89756094,2761.0,2760.6,0.80618049]
[1643791262299,3.81146732,2761.0,2760.6,0.80618049]
[1643791262599,3.40139571,2760.9,2760.6,0.80618049]
[1643791262800,1.53348527,2760.8,2760.6,0.80618049]
[1643791263000,1.53348527,2760.8,2760.5,1.20569]
[1643791264355,0.36273397,2760.7,2760.5,1.20569]
[1643791264550,1.53348527,2760.6,2760.5,1.20569]
[1643791265049,2.21711601,2760.8,2760.5,1.20569]
[1643791265452,2.21711601,2760.7,2760.5,1.20569]
[1643791265652,1.53348527,2760.6,2760.5,1.20569]
[1643791266250,0.39725415,2760.7,2760.5,1.20569]
[1643791266552,1.53348527,2760.6,2760.5,1.20569]
[1643791266750,3.45027916,2760.6,2760.5,0.3]
[1643791266962,3.45027916,2760.6,2760.3,0.1811]
[1643791267155,1.53348527,2760.5,2760.3,0.4811]
[1643791268614,1.53348527,2760.4,2760.3,0.4811]
[1643791269005,1.53348527,2760.6,2760.3,0.4811]
[1643791269205,1.53348527,2760.5,2760.3,0.4811]
[1643791269407,1.53348527,2760.4,2760.3,0.3]
[1643791270007,1.53348527,2760.6,2760.3,0.3]
[1643791270207,1.53348527,2760.5,2760.3,0.3]
[1643791270408,1.53348527,2760.4,2760.3,0.3]
[1643791271108,2.22936018,2760.7,2760.3,0.3]
[1643791271109,1.53348527,2760.6,2760.3,0.3]
[1643791271311,3.364926,2760.5,2760.2,0.4811]
[1643791271511,3.364926,2760.5,2760.1,0.1811]
[1643791271512,1.53348527,2760.4,2760.1,0.1811]
[1643791271713,1.89334341,2760.3,2759.9,2.29248]
[1643791271964,1.89334341,2760.3,2759.9,0.4811]
[1643791271965,1.53348527,2760.2,2759.9,0.4811]
[1643791272362,1.53348527,2760.2,2759.9,0.1811]
[1643791272967,1.53348527,2760.2,2759.8,0.1811]
[1643791272968,0.39346443,2760.0,2759.8,0.1811]
[1643791273168,3.46515637,2759.9,2759.7,0.6]
[1643791273367,3.4468386,2759.8,2759.7,0.3]
[1643791273565,3.4468386,2759.8,2759.4,0.7811]
[1643791273765,1.53348527,2759.7,2759.5,0.3]
[1643791274164,1.9646213,2759.7,2759.4,0.7811]
[1643791274366,1.53348527,2759.6,2759.4,0.7811]
[1643791275612,1.53348527,2759.6,2759.4,0.3]
[1643791275819,3.36916515,2759.6,2759.4,0.3]
[1643791276019,1.53348527,2759.5,2759.4,0.3]
[1643791276619,1.53348527,2759.8,2759.4,0.3]
[1643791276820,1.53348527,2759.8,2759.6,0.90598]
[1643791277222,1.53348527,2759.8,2759.7,0.3]
[1643791280756,1.53348527,2759.8,2759.3,4.19692004]
[1643791281357,1.53348527,2759.8,2759.6,0.90598]
[1643791281558,1.53348527,2759.8,2759.6,1.81181]
[1643791281761,0.39346443,2760.0,2759.6,0.90598]
[1643791281762,1.53348527,2759.7,2759.6,0.90598]
[1643791281957,1.53348527,2759.9,2759.6,0.90598]
[1643791282259,1.53348527,2759.9,2759.7,0.3]
[1643791283904,1.53348527,2759.9,2759.7,1.20584]
[1643791284605,2.61058044,2760.0,2759.7,1.20584]
[1643791284807,1.53348527,2759.9,2759.7,0.90584]
[1643791285111,1.07709517,2760.0,2759.7,0.90584]
[1643791285306,1.53375265,2759.9,2759.7,0.90584]
[1643791285909,1.53375265,2759.9,2759.7,1.20584]
[1643791289154,1.53375265,2759.9,2759.7,2.1116471]
[1643791290595,1.53375265,2759.9,2759.7,2.4116471]
[1643791290896,1.53375265,2759.9,2759.7,2.1116471]
[1643791291097,1.53375265,2759.9,2759.7,2.4116471]
[1643791291502,1.53375265,2759.9,2759.7,2.1116471]
[1643791291702,1.53375265,2759.9,2759.7,2.4116471]
[1643791291901,1.53375265,2759.9,2759.7,2.1116471]
[1643791292305,1.53375265,2759.9,2759.7,2.4116471]
[1643791292906,1.53375265,2759.9,2759.7,2.1116471]
[1643791294206,3.41615022,2759.8,2759.7,1.20584]
[1643791294662,1.53375265,2759.8,2759.7,1.20584]
[1643791294957,2.21738339,2759.8,2759.7,1.20584]
[1643791295362,2.61553735,2759.8,2759.7,1.20584]
[1643791295567,4.75177498,2759.8,2759.7,0.3]
[1643791295764,4.75177498,2759.8,2759.5,1.81166]
[1643791295765,5.59114424,2759.8,2759.3,0.1811]
[1643791295962,5.59114424,2759.8,2758.9,1.81199]
[1643791295963,0.68788963,2759.6,2759.0,0.1811]
[1643791296161,2.70740512,2759.5,2758.9,1.99319]
[1643791296363,2.53375265,2759.4,2758.9,1.99319]
[1643791296562,3.37554369,2759.3,2758.9,1.99319]
[1643791296764,1.53375265,2759.2,2759.1,1.8121]
[1643791297164,1.1812,2759.4,2759.2,0.82582622]
[1643791297363,1.53392749,2759.3,2759.2,0.82582622]
[1643791298215,1.53392749,2759.3,2759.2,1.12582622]
[1643791299213,1.53392749,2759.3,2758.8,1.81227]
[1643791299214,0.1812,2759.2,2758.8,1.81227]
[1643791299417,0.523,2759.1,2758.8,1.81227]
[1643791299613,2.18612749,2759.0,2758.8,1.81227]
[1643791299816,2.00492749,2758.9,2758.8,1.81227]
[1643791300218,3.00492749,2758.9,2758.8,1.81227]
[1643791300415,2.00492749,2758.9,2758.8,2.11227]
[1643791300615,2.00492749,2758.9,2758.8,3.04327529]
[1643791300924,2.00492749,2758.9,2758.8,1.40683733]
[1643791305804,0.471,2758.9,2758.8,1.70683733]
[1643791306001,0.471,2758.9,2758.8,1.88803733]
[1643791306208,0.1812,2759.5,2758.8,1.88803733]
[1643791306401,1.53381168,2759.4,2759.0,1.8118]
[1643791306600,1.53381168,2759.3,2759.1,0.1811]
[1643791306800,0.1811,2759.8,2759.1,0.7811]
[1643791307004,1.53379589,2759.7,2759.1,0.7811]
[1643791307703,2.53379589,2759.7,2759.1,0.7811]
[1643791307904,1.53379589,2759.6,2759.2,0.90594]
[1643791308106,1.53379589,2759.6,2759.3,0.9059049]
[1643791308303,1.53379589,2759.6,2759.3,1.2059049]
[1643791308505,1.53379589,2759.5,2759.4,0.90596]
[1643791308712,1.53379589,2759.5,2759.4,1.20596]
[1643791308905,2.0540586,2759.8,2759.4,1.20596]
[1643791308906,1.53379589,2759.6,2759.4,1.20596]
[1643791309106,1.53379589,2759.5,2759.4,1.20596]
[1643791309556,1.1811,2759.8,2759.6,0.3]
[1643791309755,1.53379938,2759.7,2759.6,0.3]
[1643791312464,1.61505938,2759.7,2759.4,0.90596]
[1643791312666,1.53379938,2759.6,2759.4,0.90596]
[1643791313108,1.53379938,2759.5,2759.4,0.90596]
[1643791313308,1.53379938,2759.7,2759.4,0.90596]
[1643791313712,2.22144526,2759.7,2759.4,0.90596]
[1643791313911,1.53379938,2759.7,2759.4,0.90596]
[1643791314313,2.22144526,2759.7,2759.4,0.90596]
[1643791317267,1.53379938,2759.7,2759.4,0.90596]
[1643791317469,1.53379938,2759.6,2759.4,0.90596]
[1643791317672,1.53379938,2759.5,2759.4,1.08706]
[1643791317969,1.53379938,2759.5,2759.4,1.38706]
[1643791318167,1.53379938,2760.0,2759.4,1.7519542]
[1643791318567,0.86874588,2760.2,2759.9,0.70700404]
[1643791318767,1.53359087,2760.1,2759.9,1.91277404]
[1643791318967,0.68764588,2760.2,2759.9,1.91277404]
[1643791318968,1.53359087,2760.0,2759.9,1.00700404]
[1643791319465,0.68764588,2760.1,2759.9,1.00700404]
[1643791319871,1.53359087,2760.1,2759.9,1.00700404]
[1643791320071,1.53359087,2760.0,2759.9,1.00700404]
[1643791320271,0.9058,2760.1,2759.9,1.00700404]
[1643791320475,1.53359087,2760.0,2759.9,1.00700404]
[1643791320713,1.53359087,2760.0,2759.6,0.45804053]
[1643791320910,0.68764588,2760.1,2759.7,0.9417195]
[1643791321113,0.68764588,2760.1,2759.8,0.1811]
[1643791321313,2.22123675,2760.1,2759.8,0.1811]
[1643791321618,0.90587,2759.9,2759.8,0.1811]
[1643791321822,0.90587,2759.9,2759.6,0.1811]
[1643791322016,2.43946087,2759.9,2759.6,0.1811]
[1643791322219,1.53359087,2759.8,2759.6,0.1811]
[1643791322617,2.43952087,2759.7,2759.6,0.1811]
[1643791323220,2.43952087,2759.7,2759.5,0.1811]
[1643791323420,1.53359087,2759.6,2759.5,0.1811]
[1643791323624,3.89590241,2759.6,2759.5,0.1811]
[1643791323824,0.90607,2759.5,2759.2,0.1811]
[1643791324023,3.53100019,2759.4,2759.2,0.1811]
[1643791324223,1.53359087,2759.3,2759.2,0.1811]
[1643791324464,1.53359087,2759.3,2759.1,0.1812]
[1643791325260,2.43966087,2759.3,2759.1,0.1812]
[1643791325464,1.53359087,2759.2,2759.1,0.1812]
[1643791326765,1.53359087,2759.2,2759.1,1.99325]
[1643791326967,1.53359087,2759.4,2759.1,1.99325]
[1643791327164,1.53359087,2759.3,2759.1,1.99325]
[1643791328708,1.53359087,2759.2,2759.1,1.99325]
[1643791329208,1.99636044,2759.5,2759.1,1.99325]
[1643791329414,2.17756044,2759.5,2759.1,1.81205]
[1643791329616,1.53359087,2759.4,2759.1,1.81205]
[1643791334065,1.91830559,2759.3,2759.1,1.81205]
[1643791334264,1.53359087,2759.2,2759.1,1.81205]
[1643791334467,1.53359087,2759.2,2758.8,1.99332]
[1643791334468,3.60947274,2759.2,2758.8,1.99332]
[1643791334667,1.53359087,2759.1,2758.8,1.81212]
[1643791334869,2.46134184,2759.0,2758.7,0.9062]
[1643791335064,1.53359087,2758.9,2758.7,0.9062]
[1643791335263,1.53359087,2758.9,2758.8,0.7300958]
[1643791335466,3.44195588,2758.9,2758.8,0.7300958]
[1643791336412,3.44195588,2758.9,2758.7,0.9062]
[1643791336613,3.59267807,2758.8,2758.7,0.9062]
[1643791336814,1.53359087,2758.8,2758.7,0.9062]
[1643791337018,1.53359087,2758.9,2758.7,0.9062]
[1643791337217,1.82274741,2758.8,2758.7,0.9062]
[1643791337422,3.40290264,2758.8,2758.7,0.9062]
[1643791337617,2.53359087,2758.8,2758.7,0.9062]
[1643791337821,1.53359087,2758.8,2758.7,0.9062]
[1643791338220,2.53359087,2758.9,2758.7,0.9062]
[1643791338420,3.40608803,2758.8,2758.7,0.9062]
[1643791338620,3.34349149,2758.8,2758.7,0.9062]
[1643791338822,2.53359087,2758.8,2758.7,0.9062]
[1643791339022,4.34386035,2758.8,2758.7,0.9062]
[1643791339223,2.53359087,2758.8,2758.7,0.9062]
[1643791339459,4.38288032,2758.8,2758.7,0.9062]
[1643791339659,2.53359087,2758.8,2758.7,0.9062]
[1643791339862,1.53359087,2758.8,2758.7,0.9062]
[1643791340066,2.53359087,2758.8,2758.7,0.9062]
[1643791340664,1.53359087,2758.8,2758.7,0.9062]
[1643791340862,2.53359087,2758.8,2758.5,1.08203049]
[1643791341067,1.53359087,2758.7,2758.5,1.08203049]
[1643791341261,1.53359087,2758.6,2758.5,1.08203049]
[1643791341564,1.53359087,2758.7,2758.5,1.91731034]
[1643791341865,1.53359087,2758.6,2758.5,1.91731034]
[1643791342061,1.53359087,2758.7,2758.5,1.91731034]
[1643791342464,1.52131617,2758.7,2758.5,1.91731034]
[1643791345112,1.0,2758.9,2758.5,2.09851034]
[1643791345320,1.0,2758.9,2758.6,0.90614]
[1643791345513,2.18137891,2759.1,2758.6,0.90614]
[1643791345714,3.18137891,2759.1,2758.6,0.90614]
[1643791346116,3.18137891,2759.1,2758.5,1.01647985]
[1643791346315,0.90614,2759.0,2758.5,1.01647985]
[1643791346515,1.85276532,2758.9,2758.5,1.01647985]
[1643791346959,2.85276532,2758.9,2758.5,1.01647985]
[1643791347363,1.0,2758.8,2758.5,1.01647985]
[1643791347761,1.85276532,2758.9,2758.5,1.01647985]
[1643791347965,1.0,2759.0,2758.5,1.01647985]
[1643791348161,2.14567995,2759.1,2758.5,1.01647985]
[1643791348162,0.90618,2758.8,2758.5,1.01647985]
[1643791348769,0.1812,2759.1,2758.5,1.01647985]
[1643791349164,0.1812,2759.4,2758.5,2.10374515]
[1643791349365,5.72478767,2760.3,2758.5,2.43354985]
[1643791349366,0.1812,2759.5,2758.5,2.43354985]
[1643791349565,0.1812,2759.7,2758.6,5.21299801]
[1643791349867,0.1812,2759.8,2758.8,1.81174]
[1643791350067,3.6465,2760.3,2759.3,1.0]
[1643791350068,0.1812,2760.1,2759.3,1.0]
[1643791350266,2.91390638,2760.6,2759.4,1.0867524]
[1643791350267,0.68735177,2760.4,2759.4,1.0867524]
[1643791350472,0.86845177,2760.6,2759.4,1.08668]
[1643791350715,0.1811,2760.6,2759.4,1.08668]
[1643791350915,0.1811,2760.6,2760.5,0.76394765]
[1643791351116,0.68735177,2760.7,2760.5,1.06394765]
[1643791351313,2.6623524,2760.9,2760.5,1.06394765]
[1643791351314,0.68735177,2760.8,2760.5,1.06394765]
[1643791351713,2.86845177,2760.9,2760.5,1.06394765]
[1643791351918,0.68735177,2760.8,2760.5,1.20558]
[1643791352117,2.1811,2760.9,2760.5,0.3]
[1643791352118,0.68735177,2760.7,2760.5,0.3]
[1643791352719,0.68735177,2760.6,2760.5,0.3]
[1643791353022,2.66405984,2760.6,2760.5,0.3]
[1643791353217,2.66405984,2760.6,2760.0,2.29242]
[1643791353415,3.56979984,2760.6,2760.0,3.09639535]
[1643791354576,3.56979984,2760.6,2760.0,2.91529535]
[1643791354778,0.68735177,2760.5,2760.0,2.91529535]
[1643791354980,0.68735177,2760.5,2759.9,0.1811]
[1643791354981,3.58383051,2760.4,2759.9,0.1811]
[1643791355181,3.58383051,2760.4,2759.2,1.2453]
[1643791355182,0.68735177,2760.1,2759.7,0.1811]
[1643791355378,0.68735177,2760.1,2759.2,1.2453]
[1643791355379,2.74499609,2760.0,2759.2,1.2453]
[1643791355585,2.74499609,2760.0,2759.1,0.1811]
[1643791355586,0.1811,2759.9,2759.1,0.1811]
[1643791355780,0.1811,2759.9,2759.3,1.81177]
[1643791355980,0.76861177,2760.2,2760.0,0.84087826]
[1643791355981,0.1811,2760.1,2760.0,0.84087826]
[1643791356580,0.1811,2760.3,2760.0,0.84087826]
[1643791356877,2.70874321,2760.5,2760.0,1.14087826]
[1643791356878,0.1811,2760.4,2760.0,1.14087826]
[1643791357077,0.86845177,2760.4,2760.0,1.14087826]
[1643791357280,0.1811,2760.4,2760.0,1.14087826]
[1643791357679,1.1811,2760.4,2760.0,1.14087826]
[1643791357880,0.1811,2760.4,2760.0,1.14087826]
[1643791358114,1.1811,2760.4,2760.0,1.14087826]
[1643791358406,0.1811,2760.4,2760.0,1.14087826]
[1643791358607,1.1811,2760.4,2760.0,1.14087826]
[1643791359207,0.1811,2760.4,2760.0,1.14087826]
[1643791359409,1.1811,2760.4,2760.0,1.14087826]
[1643791359607,0.1811,2760.4,2760.0,1.14087826]
[1643791360908,0.1811,2760.4,2759.9,0.81978935]
[1643791361509,0.1811,2760.4,2760.1,0.83949704]
[1643791362364,0.1811,2760.4,2760.1,1.13949704]
[1643791362666,1.53356759,2760.3,2760.1,1.13949704]
[1643791363062,1.53356759,2760.2,2760.1,1.13949704]
[1643791363268,1.53356759,2760.3,2760.1,1.13949704]
[1643791365609,1.53356759,2760.2,2760.1,1.13949704]
[1643791366010,1.53356759,2760.4,2760.1,1.13949704]
[1643791366210,0.1811,2760.5,2760.1,1.13949704]
[1643791366211,1.53356759,2760.3,2760.1,1.13949704]
[1643791366409,1.53356759,2760.2,2760.1,1.13949704]
[1643791366814,1.53356759,2760.5,2760.1,1.13949704]
[1643791367016,1.53356759,2760.4,2760.1,1.13949704]
[1643791367215,0.31929997,2760.6,2760.1,1.13949704]
[1643791367216,1.53356759,2760.3,2760.1,1.13949704]
[1643791367417,1.53356759,2760.5,2760.1,0.3]
[1643791367616,1.53356759,2760.4,2760.1,0.3]
[1643791367818,1.53356759,2760.3,2760.0,2.11134]
[1643791368017,1.53356759,2760.2,2760.0,2.11134]
[1643791368216,1.53356759,2760.1,2760.0,2.11134]
[1643791368422,1.38356759,2760.1,2760.0,3.0260237]
[1643791368617,3.17917975,2760.6,2760.0,3.0260237]
[1643791368817,1.31929997,2760.6,2760.0,3.0260237]
[1643791369664,0.31929997,2760.6,2760.0,3.0260237]
[1643791369867,1.31929997,2760.6,2760.0,1.5146837]
[1643791370065,0.90568,2760.5,2760.0,1.5146837]
[1643791375322,0.90568,2760.5,2760.0,2.4203237]
[1643791375724,0.90568,2760.5,2760.0,2.6014237]
[1643791379870,0.90568,2760.5,2760.0,2.4203237]
[1643791380069,0.90568,2760.5,2760.1,0.1811]
[1643791380270,0.90568,2760.5,2760.0,2.4203237]
[1643791380910,0.90568,2760.5,2760.0,0.78463428]
[1643791381917,0.90568,2760.5,2760.0,1.69027428]
[1643791382117,0.90568,2760.5,2760.1,0.3]
[1643791382317,0.90568,2760.5,2760.0,1.69027428]
[1643791382520,0.90568,2760.5,2760.0,0.78463428]
[1643791382718,1.90568,2760.5,2760.0,0.78463428]
[1643791382918,1.90568,2760.5,2759.8,0.1811]
[1643791383319,0.90568,2760.5,2759.8,0.1811]
[1643791383720,0.90568,2760.5,2759.8,1.08681]
[1643791383923,0.90568,2760.5,2759.8,1.68681]
[1643791384228,0.90568,2760.5,2760.1,0.91840755]
[1643791384468,0.90568,2760.5,2760.1,1.51840755]
[1643791386469,0.1811,2760.6,2760.1,1.51840755]
[1643791386669,0.86845177,2760.6,2760.1,1.51840755]
[1643791386875,2.71335575,2760.6,2760.1,1.51840755]
[1643791387075,2.71335575,2760.6,2760.1,0.6]
[1643791387375,2.71335575,2760.6,2760.1,0.3]
[1643791387775,2.71335575,2760.6,2760.0,0.90563]
[1643791387975,0.90567,2760.5,2759.9,0.37117119]
[1643791388215,0.90567,2760.5,2760.1,1.09083365]
[1643791388412,1.53344544,2760.4,2760.1,1.09083365]
[1643791388616,1.53344544,2760.4,2760.1,1.39083365]
[1643791389212,2.43918544,2760.4,2760.1,0.3]
[1643791389417,1.53344544,2760.3,2760.1,0.3]
[1643791389813,1.53344544,2760.3,2759.8,0.4811]
[1643791390013,1.53344544,2760.3,2759.8,0.1811]
[1643791390213,2.22079721,2760.4,2759.8,0.1811]
[1643791390413,1.53344544,2760.3,2759.8,0.1811]
[1643791390714,0.68735177,2760.4,2759.8,0.1811]
[1643791390715,1.53344544,2760.2,2759.8,0.1811]
[1643791390920,1.53344544,2760.1,2759.8,0.1811]
[1643791391122,1.53344544,2760.0,2759.8,0.1811]
[1643791391321,0.90578,2760.2,2759.8,0.1811]
[1643791391322,1.53344544,2759.9,2759.8,0.1811]
[1643791391520,1.53344544,2760.1,2759.8,0.1811]
[1643791393465,1.53344544,2760.1,2759.8,1.08683]
[1643791393667,1.53344544,2760.0,2759.8,1.08683]
[1643791393865,1.53344544,2759.9,2759.8,1.08683]
[1643791394067,0.68735177,2760.2,2759.8,1.08683]
[1643791395812,0.62605177,2760.2,2759.8,1.08683]
[1643791396014,2.15949721,2760.2,2759.8,1.08683]
[1643791396215,2.15949721,2760.2,2759.8,1.68683]
[1643791396411,1.53344544,2760.1,2759.8,1.68683]
[1643791396611,1.53344544,2760.0,2759.8,1.68683]
[1643791396813,1.53344544,2759.9,2759.8,1.68683]
[1643791397020,1.53344544,2759.9,2759.8,1.50573]
[1643791397216,0.62605177,2760.2,2759.8,1.50573]
[1643791397816,1.53344544,2760.3,2759.8,1.50573]
[1643791398016,1.53344544,2760.2,2759.8,1.50573]
[1643791398218,1.53344544,2760.1,2759.8,1.50573]
[1643791398418,1.09500638,2760.4,2759.8,1.50573]
[1643791398419,1.53344544,2760.0,2759.8,1.50573]
[1643791398821,1.53344544,2759.9,2759.8,1.50573]
[1643791399461,1.53344544,2760.3,2759.8,1.50573]
[1643791399668,1.53344544,2760.2,2759.8,1.50573]